[Event "Early-Titled-Tuesday-Blitz-March-19-2024"]
[Site "Chess.com"]
[Date "2024.03.19"]
[Round "6"]
[White "cande_francisco"]
[Black "Hope_6"]
[Result "0-1"]
[WhiteElo "2524"]
[BlackElo "2711"]
[TimeControl "180+1"]
[EndTime "9:08:00 PDT"]
[Termination "Hope_6 won on time"]

1. e4 {[%clk 0:03:00]} 1... c5 {[%clk 0:02:58.3]} 2. Nf3 {[%clk 0:03:00.2]} 2...
e6 {[%clk 0:02:58.1]} 3. d4 {[%clk 0:03:00.4]} 3... cxd4 {[%clk 0:02:57.8]} 4.
Nxd4 {[%clk 0:03:01.3]} 4... Nc6 {[%clk 0:02:57.6]} 5. Bf4 {[%clk 0:02:57.9]}
5... Nf6 {[%clk 0:02:53.3]} 6. Nb5 {[%clk 0:02:56.6]} 6... e5 {[%clk 0:02:46.3]}
7. Bg5 {[%clk 0:02:56.4]} 7... d6 {[%clk 0:02:46]} 8. N1c3 {[%clk 0:02:53.4]}
8... a6 {[%clk 0:02:45.2]} 9. Na3 {[%clk 0:02:53.8]} 9... b5 {[%clk 0:02:44.7]}
10. Nab1 {[%clk 0:02:52.5]} 10... Be7 {[%clk 0:02:38]} 11. Bxf6 {[%clk
0:02:49.6]} 11... Bxf6 {[%clk 0:02:37.7]} 12. a4 {[%clk 0:02:50.3]} 12... b4
{[%clk 0:02:36.1]} 13. Nd5 {[%clk 0:02:50.3]} 13... O-O {[%clk 0:02:34.4]} 14.
Bc4 {[%clk 0:02:36.8]} 14... Be6 {[%clk 0:02:28.3]} 15. O-O {[%clk 0:02:33.8]}
15... a5 {[%clk 0:02:26.3]} 16. c3 {[%clk 0:02:29.5]} 16... Bg5 {[%clk
0:02:24.6]} 17. Qd3 {[%clk 0:02:25.5]} 17... Rb8 {[%clk 0:02:14.3]} 18. Bb5
{[%clk 0:02:23.5]} 18... Ne7 {[%clk 0:02:13.3]} 19. cxb4 {[%clk 0:02:21.4]}
19... Bxd5 {[%clk 0:02:04]} 20. exd5 {[%clk 0:02:19.9]} 20... axb4 {[%clk
0:02:04.5]} 21. Nd2 {[%clk 0:02:16.2]} 21... Bxd2 {[%clk 0:02:00.6]} 22. Qxd2
{[%clk 0:02:17.1]} 22... Qa5 {[%clk 0:01:58.8]} 23. f4 {[%clk 0:02:06.3]} 23...
exf4 {[%clk 0:01:46.8]} 24. Qxf4 {[%clk 0:01:53.2]} 24... Qb6+ {[%clk
0:01:39.5]} 25. Kh1 {[%clk 0:01:50]} 25... Nxd5 {[%clk 0:01:38.2]} 26. Qg5
{[%clk 0:01:49.9]} 26... Nc7 {[%clk 0:01:24.3]} 27. Bc4 {[%clk 0:01:40.3]} 27...
Qc5 {[%clk 0:01:15.8]} 28. Qg4 {[%clk 0:01:15.7]} 28... Nd5 {[%clk 0:01:07]} 29.
Bxd5 {[%clk 0:00:28.3]} 29... Qxd5 {[%clk 0:01:05.8]} 30. a5 {[%clk 0:00:24.9]}
30... Qb5 {[%clk 0:00:55.7]} 31. Qd4 {[%clk 0:00:20.2]} 31... Ra8 {[%clk
0:00:50.5]} 32. Qxd6 {[%clk 0:00:17.9]} 32... Rxa5 {[%clk 0:00:48.8]} 33. Rae1
{[%clk 0:00:15.9]} 33... Qc5 {[%clk 0:00:39.5]} 34. Qf4 {[%clk 0:00:08.8]} 34...
h6 {[%clk 0:00:37]} 35. Re8 {[%clk 0:00:07.6]} 35... Ra7 {[%clk 0:00:25.3]} 36.
Qb8 {[%clk 0:00:03]} 36... Rxe8 {[%clk 0:00:20.5]} 37. Qxe8+ {[%clk 0:00:03.9]}
37... Kh7 {[%clk 0:00:21]} 38. Qe4+ {[%clk 0:00:04.7]} 38... g6 {[%clk 0:00:21]}
39. Qe8 {[%clk 0:00:05]} 39... Qe7 {[%clk 0:00:18]} 40. Qb5 {[%clk 0:00:04.3]}
40... Rc7 {[%clk 0:00:16.8]} 41. Qd5 {[%clk 0:00:03.5]} 41... Rd7 {[%clk
0:00:16.2]} 42. Qc4 {[%clk 0:00:03.3]} 42... Kg7 {[%clk 0:00:16.1]} 43. h3
{[%clk 0:00:03]} 43... h5 {[%clk 0:00:15.9]} 44. Qf4 {[%clk 0:00:03]} 44... Rd5
{[%clk 0:00:12.6]} 45. Qc4 {[%clk 0:00:02.5]} 45... Qe5 {[%clk 0:00:07.7]} 46.
b3 {[%clk 0:00:02.8]} 46... Qd6 {[%clk 0:00:05.3]} 47. Qc1 {[%clk 0:00:01.4]}
47... Rf5 {[%clk 0:00:05]} 48. Qa1+ {[%clk 0:00:02]} 48... Qf6 {[%clk
0:00:04.8]} 0-1

[Event "Early-Titled-Tuesday-Blitz-March-19-2024"]
[Site "Chess.com"]
[Date "2024.03.19"]
[Round "6"]
[White "IraZyne"]
[Black "Incognizance"]
[Result "1-0"]
[WhiteElo "2334"]
[BlackElo "1886"]
[TimeControl "180+1"]
[EndTime "9:08:03 PDT"]
[Termination "IraZyne won on time"]

1. e4 {[%clk 0:03:00.9]} 1... c5 {[%clk 0:02:53.2]} 2. Nc3 {[%clk 0:02:59.9]}
2... e6 {[%clk 0:02:50.9]} 3. Nge2 {[%clk 0:02:59]} 3... d5 {[%clk 0:02:50.3]}
4. exd5 {[%clk 0:02:58.7]} 4... exd5 {[%clk 0:02:50.3]} 5. d4 {[%clk 0:02:59.1]}
5... Nf6 {[%clk 0:02:50.4]} 6. g3 {[%clk 0:02:58.3]} 6... Nc6 {[%clk 0:02:50.1]}
7. Bg2 {[%clk 0:02:58.3]} 7... cxd4 {[%clk 0:02:48.3]} 8. Nxd4 {[%clk
0:02:57.3]} 8... Bc5 {[%clk 0:02:49]} 9. Nce2 {[%clk 0:02:54.3]} 9... Bg4 {[%clk
0:02:40.7]} 10. h3 {[%clk 0:02:46.5]} 10... Bh5 {[%clk 0:02:35.6]} 11. g4 {[%clk
0:02:45.7]} 11... Bg6 {[%clk 0:02:35.6]} 12. O-O {[%clk 0:02:44.7]} 12... h5
{[%clk 0:02:20.8]} 13. g5 {[%clk 0:02:44.2]} 13... Ne4 {[%clk 0:02:21]} 14. Nb3
{[%clk 0:02:40.8]} 14... Be7 {[%clk 0:01:52.1]} 15. Nf4 {[%clk 0:02:31.4]} 15...
O-O {[%clk 0:01:29.5]} 16. h4 {[%clk 0:02:19.7]} 16... Rc8 {[%clk 0:01:06.2]}
17. c3 {[%clk 0:02:08.1]} 17... Nc5 {[%clk 0:00:54.7]} 18. Nxg6 {[%clk
0:02:04.4]} 18... fxg6 {[%clk 0:00:49.6]} 19. Qxd5+ {[%clk 0:02:04.1]} 19...
Qxd5 {[%clk 0:00:48.2]} 20. Bxd5+ {[%clk 0:02:03.7]} 20... Kh7 {[%clk
0:00:42.8]} 21. Be3 {[%clk 0:01:58]} 21... Na4 {[%clk 0:00:35.6]} 22. Rab1
{[%clk 0:01:43.2]} 22... Rcd8 {[%clk 0:00:33]} 23. Be4 {[%clk 0:01:33.4]} 23...
a6 {[%clk 0:00:20.4]} 24. Nd4 {[%clk 0:01:29.7]} 24... Nxd4 {[%clk 0:00:19.1]}
25. Bxd4 {[%clk 0:01:29.7]} 25... Bc5 {[%clk 0:00:19.3]} 26. b3 {[%clk
0:01:22.8]} 26... Bxd4 {[%clk 0:00:18.3]} 27. cxd4 {[%clk 0:01:22.9]} 27... Nc3
{[%clk 0:00:17.5]} 28. Rbe1 {[%clk 0:01:20.5]} 28... Rxd4 {[%clk 0:00:16.7]} 29.
Bxb7 {[%clk 0:01:20.2]} 29... Rxh4 {[%clk 0:00:16.2]} 30. f3 {[%clk 0:01:13.1]}
30... Rhf4 {[%clk 0:00:12.8]} 31. Kg2 {[%clk 0:01:12.5]} 31... R4f5 {[%clk
0:00:13.1]} 32. Re7 {[%clk 0:01:03.5]} 32... Rxg5+ {[%clk 0:00:13.4]} 33. Kf2
{[%clk 0:01:03.7]} 33... Rgf5 {[%clk 0:00:13.9]} 34. Rc1 {[%clk 0:00:58.4]}
34... Nd5 {[%clk 0:00:09.7]} 35. Bxd5 {[%clk 0:00:57.5]} 35... Rxd5 {[%clk
0:00:10]} 36. Rcc7 {[%clk 0:00:57.2]} 36... Rg8 {[%clk 0:00:10.7]} 37. Re6
{[%clk 0:00:56.4]} 37... Rd2+ {[%clk 0:00:10.4]} 38. Ke3 {[%clk 0:00:55.7]}
38... Rxa2 {[%clk 0:00:11.1]} 39. Rcc6 {[%clk 0:00:55.7]} 39... Ra3 {[%clk
0:00:09.8]} 40. Rb6 {[%clk 0:00:53.2]} 40... a5 {[%clk 0:00:10.4]} 41. Kf4
{[%clk 0:00:51.2]} 41... h4 {[%clk 0:00:09.8]} 42. Kg4 {[%clk 0:00:50.8]} 42...
h3 {[%clk 0:00:07.6]} 43. Kxh3 {[%clk 0:00:48.6]} 43... a4 {[%clk 0:00:08.2]}
44. Re3 {[%clk 0:00:45]} 44... Rxb3 {[%clk 0:00:07.2]} 45. Rexb3 {[%clk
0:00:44.6]} 45... axb3 {[%clk 0:00:07.4]} 46. Rxb3 {[%clk 0:00:45.1]} 46... Rf8
{[%clk 0:00:05.7]} 47. Kg4 {[%clk 0:00:44.3]} 47... Rd8 {[%clk 0:00:05.2]} 48.
f4 {[%clk 0:00:43.8]} 48... Rd4 {[%clk 0:00:05.4]} 49. Rb5 {[%clk 0:00:42.4]}
49... Rd1 {[%clk 0:00:05.2]} 50. Ra5 {[%clk 0:00:40.9]} 50... Rg1+ {[%clk
0:00:05.4]} 51. Kf3 {[%clk 0:00:40.2]} 51... g5 {[%clk 0:00:05.8]} 52. fxg5
{[%clk 0:00:38.5]} 52... Kg6 {[%clk 0:00:04.9]} 53. Kf4 {[%clk 0:00:38.5]} 53...
Rf1+ {[%clk 0:00:04.9]} 54. Kg3 {[%clk 0:00:36.2]} 54... Rf5 {[%clk 0:00:04.8]}
55. Ra6+ {[%clk 0:00:34.1]} 55... Kxg5 {[%clk 0:00:05]} 56. Ra7 {[%clk 0:00:35]}
56... g6 {[%clk 0:00:05.4]} 57. Ra8 {[%clk 0:00:33.7]} 57... Rd5 {[%clk
0:00:05.5]} 58. Kg2 {[%clk 0:00:33]} 58... Rd3 {[%clk 0:00:05.8]} 59. Rb8 {[%clk
0:00:30.9]} 59... Kh5 {[%clk 0:00:03.9]} 60. Rh8+ {[%clk 0:00:29.9]} 60... Kg4
{[%clk 0:00:04.1]} 61. Rb8 {[%clk 0:00:30.4]} 61... g5 {[%clk 0:00:04.4]} 62.
Rb4+ {[%clk 0:00:31]} 62... Kh5 {[%clk 0:00:04.9]} 63. Rb8 {[%clk 0:00:30.7]}
63... Ra3 {[%clk 0:00:05]} 64. Rb2 {[%clk 0:00:29.8]} 64... Kh4 {[%clk
0:00:04.4]} 65. Rb8 {[%clk 0:00:28.8]} 65... Ra2+ {[%clk 0:00:01.9]} 66. Kg1
{[%clk 0:00:28.2]} 1-0

[Event "Early-Titled-Tuesday-Blitz-March-19-2024"]
[Site "Chess.com"]
[Date "2024.03.19"]
[Round "6"]
[White "wild3000"]
[Black "Winner_7777"]
[Result "1-0"]
[WhiteElo "2442"]
[BlackElo "2620"]
[TimeControl "180+1"]
[EndTime "9:08:04 PDT"]
[Termination "wild3000 won on time"]

1. e4 {[%clk 0:02:47.9]} 1... c5 {[%clk 0:03:00.1]} 2. Nf3 {[%clk 0:02:47.8]}
2... d6 {[%clk 0:03:00.6]} 3. d4 {[%clk 0:02:47.4]} 3... cxd4 {[%clk 0:03:01.5]}
4. Nxd4 {[%clk 0:02:48.3]} 4... Nf6 {[%clk 0:03:02.1]} 5. Nc3 {[%clk 0:02:48.1]}
5... a6 {[%clk 0:03:02.7]} 6. h3 {[%clk 0:02:47.7]} 6... e5 {[%clk 0:03:02.8]}
7. Nde2 {[%clk 0:02:46.1]} 7... h5 {[%clk 0:03:03.3]} 8. g3 {[%clk 0:02:44.1]}
8... b5 {[%clk 0:03:00.5]} 9. Bg2 {[%clk 0:02:43]} 9... Bb7 {[%clk 0:02:58.1]}
10. O-O {[%clk 0:02:42.4]} 10... Nbd7 {[%clk 0:02:56.3]} 11. Be3 {[%clk
0:02:34.3]} 11... Rc8 {[%clk 0:02:56]} 12. f4 {[%clk 0:02:22.1]} 12... b4 {[%clk
0:02:44.4]} 13. Nd5 {[%clk 0:02:19.7]} 13... Nxd5 {[%clk 0:02:41.4]} 14. exd5
{[%clk 0:02:20.6]} 14... Nf6 {[%clk 0:02:42.1]} 15. fxe5 {[%clk 0:02:04.5]}
15... dxe5 {[%clk 0:02:43]} 16. Bg5 {[%clk 0:01:57.8]} 16... Bc5+ {[%clk
0:01:47.3]} 17. Kh1 {[%clk 0:01:54.6]} 17... Bxd5 {[%clk 0:01:47.4]} 18. Bxf6
{[%clk 0:01:38.9]} 18... Bxg2+ {[%clk 0:01:47.9]} 19. Kxg2 {[%clk 0:01:39.8]}
19... gxf6 {[%clk 0:01:45.8]} 20. Qxd8+ {[%clk 0:01:39.2]} 20... Rxd8 {[%clk
0:01:46.7]} 21. Rxf6 {[%clk 0:01:28.5]} 21... Rd2 {[%clk 0:01:41.2]} 22. Kf1
{[%clk 0:01:24]} 22... Rxc2 {[%clk 0:01:23.7]} 23. Rc6 {[%clk 0:01:22.8]} 23...
Ke7 {[%clk 0:01:24.4]} 24. Rc1 {[%clk 0:01:14.7]} 24... Rxc1+ {[%clk 0:01:08.4]}
25. Nxc1 {[%clk 0:01:15.6]} 25... Bd4 {[%clk 0:01:04.4]} 26. b3 {[%clk 0:01:09]}
26... a5 {[%clk 0:00:46.2]} 27. Ne2 {[%clk 0:01:02.7]} 27... h4 {[%clk
0:00:18.1]} 28. g4 {[%clk 0:00:55.3]} 28... Rd8 {[%clk 0:00:17.4]} 29. Rh6
{[%clk 0:00:46.3]} 29... Be3 {[%clk 0:00:12.6]} 30. Rxh4 {[%clk 0:00:42.9]}
30... Rd1+ {[%clk 0:00:12.7]} 31. Kg2 {[%clk 0:00:43.1]} 31... e4 {[%clk
0:00:13.4]} 32. g5 {[%clk 0:00:42.1]} 32... Bxg5 {[%clk 0:00:07.2]} 33. Rxe4+
{[%clk 0:00:42.1]} 33... Kf6 {[%clk 0:00:07.8]} 34. h4 {[%clk 0:00:42.3]} 34...
Bh6 {[%clk 0:00:06.5]} 35. Rc4 {[%clk 0:00:27]} 35... Rd2 {[%clk 0:00:05.6]} 36.
Kf3 {[%clk 0:00:27.5]} 36... Rxa2 {[%clk 0:00:06.2]} 37. Rc6+ {[%clk 0:00:23.9]}
37... Kg7 {[%clk 0:00:06.2]} 38. Ng3 {[%clk 0:00:22.9]} 38... Bd2 {[%clk
0:00:05.8]} 39. Nf5+ {[%clk 0:00:21.2]} 39... Kh7 {[%clk 0:00:06]} 40. Rf6
{[%clk 0:00:18.9]} 40... Bc3 {[%clk 0:00:05.1]} 41. Rxf7+ {[%clk 0:00:17.7]}
41... Kg6 {[%clk 0:00:05.8]} 42. Nd6 {[%clk 0:00:18.3]} 42... Rd2 {[%clk
0:00:05.6]} 43. Rd7 {[%clk 0:00:18.1]} 43... Be5 {[%clk 0:00:05]} 44. h5+ {[%clk
0:00:17.9]} 44... Kxh5 {[%clk 0:00:04]} 45. Rh7+ {[%clk 0:00:17.8]} 45... Kg6
{[%clk 0:00:04.4]} 46. Ra7 {[%clk 0:00:16.6]} 46... Bxd6 {[%clk 0:00:03.7]} 47.
Rxa5 {[%clk 0:00:16.2]} 47... Kf6 {[%clk 0:00:03.3]} 48. Ke4 {[%clk 0:00:15.1]}
48... Ke6 {[%clk 0:00:02.6]} 49. Rh5 {[%clk 0:00:11.1]} 49... Re2+ {[%clk
0:00:02.5]} 50. Kd3 {[%clk 0:00:11]} 50... Rb2 {[%clk 0:00:03]} 51. Kc4 {[%clk
0:00:10.8]} 51... Rc2+ {[%clk 0:00:03.6]} 52. Kb5 {[%clk 0:00:10.1]} 52... Rc3
{[%clk 0:00:04.2]} 53. Ka4 {[%clk 0:00:10.2]} 53... Kd7 {[%clk 0:00:02.8]} 54.
Ra5 {[%clk 0:00:08.7]} 1-0

[Event "Early-Titled-Tuesday-Blitz-March-19-2024"]
[Site "Chess.com"]
[Date "2024.03.19"]
[Round "6"]
[White "Durarbayli"]
[Black "Flawless_Fighter"]
[Result "1/2-1/2"]
[WhiteElo "2988"]
[BlackElo "2844"]
[TimeControl "180+1"]
[EndTime "9:08:05 PDT"]
[Termination "Game drawn by repetition"]

1. e4 {[%clk 0:03:00.9]} 1... c6 {[%clk 0:02:57.2]} 2. d4 {[%clk 0:03:00.1]}
2... d5 {[%clk 0:02:58.1]} 3. exd5 {[%clk 0:03:00.9]} 3... cxd5 {[%clk
0:02:54.6]} 4. c4 {[%clk 0:03:00.9]} 4... Nf6 {[%clk 0:02:54.2]} 5. Nc3 {[%clk
0:03:01.4]} 5... Nc6 {[%clk 0:02:50.8]} 6. Nf3 {[%clk 0:03:01.5]} 6... g6 {[%clk
0:02:49.4]} 7. cxd5 {[%clk 0:02:52.5]} 7... Nxd5 {[%clk 0:02:49.4]} 8. Qb3
{[%clk 0:02:52.6]} 8... Nxc3 {[%clk 0:02:41.3]} 9. bxc3 {[%clk 0:02:51.8]} 9...
Bg7 {[%clk 0:02:41.4]} 10. Be2 {[%clk 0:02:14.1]} 10... O-O {[%clk 0:02:41]} 11.
O-O {[%clk 0:02:13.7]} 11... e5 {[%clk 0:02:32.1]} 12. Bg5 {[%clk 0:02:05.4]}
12... Qc7 {[%clk 0:02:14.4]} 13. d5 {[%clk 0:01:56.2]} 13... Na5 {[%clk
0:02:14.2]} 14. Qb4 {[%clk 0:01:56.5]} 14... Bd7 {[%clk 0:01:40.6]} 15. d6
{[%clk 0:01:50.2]} 15... Qb6 {[%clk 0:01:40.5]} 16. Be7 {[%clk 0:01:04.7]} 16...
Rfc8 {[%clk 0:01:38.7]} 17. Qh4 {[%clk 0:01:01.7]} 17... h6 {[%clk 0:01:27.6]}
18. Rab1 {[%clk 0:00:59.3]} 18... Qc5 {[%clk 0:01:21.2]} 19. Bf6 {[%clk
0:00:41.5]} 19... Qxd6 {[%clk 0:01:10]} 20. Bxg7 {[%clk 0:00:40.1]} 20... Kxg7
{[%clk 0:01:08.6]} 21. Rfd1 {[%clk 0:00:41]} 21... Qe6 {[%clk 0:01:05.4]} 22.
Qe4 {[%clk 0:00:19.6]} 22... Re8 {[%clk 0:00:57.6]} 23. Rd5 {[%clk 0:00:09]}
23... Bc6 {[%clk 0:00:56.4]} 24. Qxe5+ {[%clk 0:00:09.6]} 24... Qxe5 {[%clk
0:00:56.5]} 25. Rxe5 {[%clk 0:00:10.2]} 25... b6 {[%clk 0:00:46.3]} 26. Rxe8
{[%clk 0:00:07.8]} 26... Rxe8 {[%clk 0:00:47.2]} 27. Nd4 {[%clk 0:00:08.2]}
27... Bd5 {[%clk 0:00:46.6]} 28. a4 {[%clk 0:00:07.7]} 28... Nc6 {[%clk
0:00:43.7]} 29. Bb5 {[%clk 0:00:05.8]} 29... Rc8 {[%clk 0:00:38.5]} 30. Bxc6
{[%clk 0:00:06.2]} 30... Bxc6 {[%clk 0:00:38.9]} 31. Ra1 {[%clk 0:00:06.9]}
31... Be8 {[%clk 0:00:36.5]} 32. Ra3 {[%clk 0:00:06.9]} 32... Rc4 {[%clk
0:00:35]} 33. Nb5 {[%clk 0:00:04.5]} 33... Bd7 {[%clk 0:00:24.6]} 34. Nxa7
{[%clk 0:00:03.3]} 34... Bxa4 {[%clk 0:00:19.7]} 35. f3 {[%clk 0:00:03.6]} 35...
Bd7 {[%clk 0:00:18.8]} 36. Kf2 {[%clk 0:00:03.1]} 36... g5 {[%clk 0:00:18.8]}
37. Ke3 {[%clk 0:00:03.5]} 37... h5 {[%clk 0:00:18.1]} 38. Kd3 {[%clk
0:00:03.8]} 38... Rc7 {[%clk 0:00:18.8]} 39. c4 {[%clk 0:00:03.8]} 39... Rc5
{[%clk 0:00:18.5]} 40. Kd4 {[%clk 0:00:03.9]} 40... h4 {[%clk 0:00:18.8]} 41. g3
{[%clk 0:00:03.5]} 41... h3 {[%clk 0:00:18.4]} 42. f4 {[%clk 0:00:03.2]} 42...
Kf6 {[%clk 0:00:18.4]} 43. fxg5+ {[%clk 0:00:03.5]} 43... Kxg5 {[%clk
0:00:18.9]} 44. Rf3 {[%clk 0:00:04.1]} 44... f6 {[%clk 0:00:18.6]} 45. Re3
{[%clk 0:00:04.7]} 45... Ra5 {[%clk 0:00:16.3]} 46. Nb5 {[%clk 0:00:02.9]} 46...
Bxb5 {[%clk 0:00:16.7]} 47. cxb5 {[%clk 0:00:03.8]} 47... Rxb5 {[%clk
0:00:17.5]} 48. Re8 {[%clk 0:00:04]} 48... Rb2 {[%clk 0:00:16.3]} 49. Rg8+
{[%clk 0:00:04.6]} 49... Kf5 {[%clk 0:00:16.5]} 50. g4+ {[%clk 0:00:05.1]} 50...
Kf4 {[%clk 0:00:16.6]} 51. Rg6 {[%clk 0:00:04.6]} 51... Rd2+ {[%clk 0:00:16.1]}
52. Kc3 {[%clk 0:00:04.6]} 52... Rxh2 {[%clk 0:00:17]} 53. Rxf6+ {[%clk
0:00:05]} 53... Kg3 {[%clk 0:00:17.8]} 54. g5 {[%clk 0:00:05]} 54... Rg2 {[%clk
0:00:16.5]} 55. g6 {[%clk 0:00:04.1]} 55... Kh2 {[%clk 0:00:14.2]} 56. Rxb6
{[%clk 0:00:04]} 56... Kg1 {[%clk 0:00:12.9]} 57. Rb1+ {[%clk 0:00:04.5]} 57...
Kh2 {[%clk 0:00:12.1]} 58. Rb2 {[%clk 0:00:04.7]} 58... Kh1 {[%clk 0:00:10.4]}
59. Rb1+ {[%clk 0:00:03.9]} 59... Kh2 {[%clk 0:00:10.7]} 60. Rb2 {[%clk
0:00:04.2]} 60... Kh1 {[%clk 0:00:05.4]} 61. Rb1+ {[%clk 0:00:04.2]} 61... Kh2
{[%clk 0:00:03.9]} 1/2-1/2

[Event "Early-Titled-Tuesday-Blitz-March-19-2024"]
[Site "Chess.com"]
[Date "2024.03.19"]
[Round "6"]
[White "Crazy_girl99"]
[Black "Jumbo"]
[Result "0-1"]
[WhiteElo "2606"]
[BlackElo "2886"]
[TimeControl "180+1"]
[EndTime "9:08:06 PDT"]
[Termination "Jumbo won on time"]

1. d4 {[%clk 0:02:59.8]} 1... Nf6 {[%clk 0:02:55.9]} 2. Bf4 {[%clk 0:02:59.7]}
2... c5 {[%clk 0:02:55.1]} 3. e3 {[%clk 0:02:59.5]} 3... cxd4 {[%clk 0:02:53.7]}
4. exd4 {[%clk 0:02:59.8]} 4... Qb6 {[%clk 0:02:54.1]} 5. Nc3 {[%clk 0:02:55.5]}
5... a6 {[%clk 0:02:41.4]} 6. Rb1 {[%clk 0:02:41.4]} 6... d5 {[%clk 0:02:41]} 7.
h3 {[%clk 0:02:35]} 7... Bf5 {[%clk 0:02:37.6]} 8. Nf3 {[%clk 0:02:34.7]} 8...
Nc6 {[%clk 0:02:34.1]} 9. Bd3 {[%clk 0:02:15.4]} 9... Bxd3 {[%clk 0:02:08.8]}
10. Qxd3 {[%clk 0:02:14.8]} 10... e6 {[%clk 0:02:06.5]} 11. O-O {[%clk
0:02:14.8]} 11... Be7 {[%clk 0:02:06]} 12. a3 {[%clk 0:02:07.8]} 12... O-O
{[%clk 0:02:03.9]} 13. b4 {[%clk 0:02:08.2]} 13... Rfc8 {[%clk 0:01:58.6]} 14.
Na4 {[%clk 0:02:08]} 14... Qd8 {[%clk 0:01:59.1]} 15. Rfc1 {[%clk 0:02:02.6]}
15... Ne8 {[%clk 0:01:44.1]} 16. Nc5 {[%clk 0:02:02.1]} 16... Ra7 {[%clk
0:01:24.9]} 17. c4 {[%clk 0:02:00.7]} 17... Nf6 {[%clk 0:01:07.6]} 18. cxd5
{[%clk 0:01:50.2]} 18... Nxd5 {[%clk 0:01:07.6]} 19. Bg3 {[%clk 0:01:50.3]}
19... h6 {[%clk 0:00:49.9]} 20. Re1 {[%clk 0:01:46]} 20... a5 {[%clk 0:00:44.5]}
21. b5 {[%clk 0:01:39.5]} 21... Nxd4 {[%clk 0:00:44.7]} 22. b6 {[%clk
0:01:08.2]} 22... Nxb6 {[%clk 0:00:35.1]} 23. Qxd4 {[%clk 0:01:03.1]} 23... Bxc5
{[%clk 0:00:29]} 24. Qxd8+ {[%clk 0:00:56.9]} 24... Rxd8 {[%clk 0:00:29.9]} 25.
Bc7 {[%clk 0:00:57.1]} 25... Rd3 {[%clk 0:00:17.5]} 26. Bxb6 {[%clk 0:00:57.1]}
26... Bxb6 {[%clk 0:00:18.1]} 27. Rxb6 {[%clk 0:00:57.9]} 27... Rxa3 {[%clk
0:00:18.4]} 28. Reb1 {[%clk 0:00:58.2]} 28... a4 {[%clk 0:00:16.6]} 29. Rxb7
{[%clk 0:00:57.9]} 29... Rxb7 {[%clk 0:00:16.7]} 30. Rxb7 {[%clk 0:00:58.6]}
30... Ra1+ {[%clk 0:00:16.1]} 31. Kh2 {[%clk 0:00:58.2]} 31... a3 {[%clk
0:00:15.9]} 32. Ra7 {[%clk 0:00:57.7]} 32... a2 {[%clk 0:00:11.7]} 33. Kg3
{[%clk 0:00:57.5]} 33... g5 {[%clk 0:00:11.7]} 34. Nd4 {[%clk 0:00:44.8]} 34...
Rd1 {[%clk 0:00:09.1]} 35. Nc2 {[%clk 0:00:43.1]} 35... Rd3+ {[%clk 0:00:09.2]}
36. f3 {[%clk 0:00:40.5]} 36... h5 {[%clk 0:00:05.4]} 37. Rxa2 {[%clk
0:00:38.9]} 37... Kg7 {[%clk 0:00:05.2]} 38. Nb4 {[%clk 0:00:36.4]} 38... Rd6
{[%clk 0:00:04.5]} 39. Rc2 {[%clk 0:00:34.6]} 39... Kg6 {[%clk 0:00:04.8]} 40.
Nc6 {[%clk 0:00:33.1]} 40... f6 {[%clk 0:00:04.7]} 41. Ne7+ {[%clk 0:00:27.3]}
41... Kf7 {[%clk 0:00:04.8]} 42. Rc7 {[%clk 0:00:27.5]} 42... h4+ {[%clk
0:00:05.4]} 43. Kh2 {[%clk 0:00:26.9]} 43... Rd2 {[%clk 0:00:06]} 44. Nf5+
{[%clk 0:00:09.6]} 44... Kg6 {[%clk 0:00:06.1]} 45. Ne3 {[%clk 0:00:09.9]} 45...
f5 {[%clk 0:00:06.1]} 46. Rc6 {[%clk 0:00:06]} 46... Kf6 {[%clk 0:00:06.2]} 47.
Kg1 {[%clk 0:00:03]} 47... Re2 {[%clk 0:00:05]} 48. Nd5+ {[%clk 0:00:03.2]}
48... Ke5 {[%clk 0:00:05.5]} 49. Nc7 {[%clk 0:00:03.6]} 49... Kf6 {[%clk
0:00:05.5]} 50. Kf1 {[%clk 0:00:03.1]} 50... Re5 {[%clk 0:00:05.9]} 51. Kf2
{[%clk 0:00:03.7]} 51... Ke7 {[%clk 0:00:05.9]} 52. Rc2 {[%clk 0:00:02.9]} 52...
Kd7 {[%clk 0:00:05.8]} 53. Na6 {[%clk 0:00:02.1]} 53... Ke7 {[%clk 0:00:05.1]}
54. Nc5 {[%clk 0:00:02.1]} 54... Rd5 {[%clk 0:00:05.1]} 55. Nb3 {[%clk
0:00:01.2]} 55... Kf6 {[%clk 0:00:05.4]} 56. Rd2 {[%clk 0:00:01.4]} 56... Rb5
{[%clk 0:00:05.6]} 57. Nd4 {[%clk 0:00:01.8]} 57... Rd5 {[%clk 0:00:06.3]} 58.
Ke1 {[%clk 0:00:01.8]} 58... Re5+ {[%clk 0:00:06.6]} 59. Re2 {[%clk 0:00:01.9]}
59... Rd5 {[%clk 0:00:06.8]} 0-1